Workbook

Sheet 目次
B2: 本日の研修メニュー
B4: 1 | C4: 相対参照と絶対参照それぞれの利点と活用法 | E4: 基本技能
B5: 2 | C5: 条件に合ったセルを強調することで、間違いを防ぐ方法 | E5: 基本技能
B6: 3 | C6: 効率的に入力しつつセル間を移動する方法 | E6: 基本技能
B7: 4 | C7: ボタンやスイッチをシートに配置して特定のセルに関連付ける方法 | E7: 基本技能
B8: 5 | C8: 連続的にセルの値を変化させ、表示内容を変えていく方法 | E8: 教材提示
B9: 6 | C9: 転入生などがあっても行を挿入したりせず、条件を指定することで平均点を出す方法 | E9: 成績処理
B10: 7 | C10: 設定したハードルで評価を分ける方法 ３５点以上はＡ など | E10: 成績処理
B11: 8 | C11: 一度設定したハードルを連続的に変化させつつ評価・評定の分布を見直す方法 | E11: 成績処理
B12: 9 | C12: AAAB → 4 のように評定を出す方法 | E12: 成績処理
B13: 10 | C13: 評定分布表の作り方 | E13: 成績処理
B14: 11 | C14: 連続印刷の仕方 基本と応用 | E14: 成績処理
C15: 1-6は午前開催、7-11は午後に開催します。当日の人数によってはこの限りではありません。

Sheet 1 相対・絶対
B2: 相対参照と絶対参照
B4: 回→ | C4: 1 | D4: 2 | E4: 3 | F4: 4 | G4: 5 | H4: 合計
B5: 比重 | C5: 10 | D5: 5 | E5: 15 | F5: 5 | G5: 5
B6: Aさん | C6: 5 | D6: 6 | E6: 7 | F6: 4 | G6: 6 | H6: =C6*C5+D6*D5+E6*E5+F6*F5+G6*G5 -> 235
B7: Bさん | C7: 1 | D7: 7 | E7: 3 | F7: 9 | G7: 2
B8: Cさん | C8: 9 | D8: 8 | E8: 7 | F8: 8 | G8: 9 | I8: 下にコピー
B9: Dさん | C9: 1 | D9: 4 | E9: 5 | F9: 3 | G9: 5
B13: 回→ | C13: 1 | D13: 2 | E13: 3 | F13: 4 | G13: 5 | H13: 合計
B14: 比重 | C14: 10 | D14: 5 | E14: 15 | F14: 5 | G14: 5 | J14: RANK
B15: Aさん | C15: 5 | D15: 6 | E15: 7 | F15: 4 | G15: 6 | H15: =C15*$C$14+D15*$D$14+E15*$E$14+F15*$F$14+G15*$G$14 -> 235 | J15: =RANK(H15,H15:H18) -> 1
B16: Bさん | C16: 1 | D16: 7 | E16: 3 | F16: 9 | G16: 2
B17: Cさん | C17: 9 | D17: 8 | E17: 7 | F17: 8 | G17: 9 | I17: 下にコピー
B18: Dさん | C18: 1 | D18: 4 | E18: 5 | F18: 3 | G18: 5

Sheet 2 条件付書式
B1: 入力した素点がおかしい
B2: 回 | C2: 1 | D2: 2 | E2: 3 | F2: 4 | G2: 5 | H2: 合計
B3: 配点 | C3: 8 | D3: 10 | E3: 10 | F3: 10 | G3: 10 | H3: =SUM(C3:G3) -> 48
B4: Aさん | C4: 5 | D4: 6 | E4: 7 | F4: 4 | G4: 6 | H4: =SUM(C4:G4) -> 28
B5: Bさん | C5: 1 | D5: 7 | E5: 3 | F5: 9 | G5: 2 | H5: =SUM(C5:G5) -> 22
B6: Cさん | C6: 7 | D6: 8 | E6: 7 | F6: 8 | G6: 9 | H6: =SUM(C6:G6) -> 39
B7: Dさん | C7: 1 | D7: 4 | E7: 5 | F7: 3 | G7: 5 | H7: =SUM(C7:G7) -> 18
B10: 平均点より1点以上低い
B11: 回 | C11: 1 | D11: 2 | E11: 3 | F11: 4 | G11: 5 | H11: 合計
B12: 配点 | C12: 10 | D12: 10 | E12: 10 | F12: 10 | G12: 10 | H12: =SUM(C12:G12) -> 50
B13: 平均点 | C13: =AVERAGE(C14:C17) -> 5.5 | D13: =AVERAGE(D14:D17) -> 7 | E13: 5.5 | F13: 8.25 | G13: 6.75 | H13: 33
B14: Aさん | C14: 5 | D14: 6 | E14: 7 | F14: 8 | G14: 6 | H14: =SUM(C14:G14) -> 32
B15: Bさん | C15: 3 | D15: 7 | E15: 3 | F15: 9 | G15: 6 | H15: =SUM(C15:G15) -> 28
B16: Cさん | C16: 9 | D16: 8 | E16: 7 | F16: 8 | G16: 9 | H16: =SUM(C16:G16) -> 41
B17: Dさん | C17: 5 | D17: 7 | E17: 5 | F17: 8 | G17: 6 | H17: =SUM(C17:G17) -> 31
B20: 回 | C20: 1 | D20: 2 | E20: 3 | F20: 4 | G20: 5 | H20: 合計
B21: 配点 | C21: 10 | D21: 10 | E21: 10 | F21: 10 | G21: 10 | H21: =SUM(C21:G21) -> 50
A22: TRUE | B22: 平均点 | C22: =AVERAGE(C23:C26) -> 5.5 | D22: =AVERAGE(D23:D26) -> 7 | E22: =AVERAGE(E23:E26) -> 5.5 | F22: =AVERAGE(F23:F26) -> 8.25 | G22: =AVERAGE(G23:G26) -> 6.75 | H22: =AVERAGE(H23:H26) -> 33
B23: Aさん | C23: 5 | D23: 6 | E23: 7 | F23: 8 | G23: 6 | H23: =SUM(C23:G23) -> 32
B24: Bさん | C24: 3 | D24: 7 | E24: 3 | F24: 9 | G24: 6 | H24: =SUM(C24:G24) -> 28
B25: Cさん | C25: 9 | D25: 8 | E25: 7 | F25: 8 | G25: 9 | H25: =SUM(C25:G25) -> 41
B26: Dさん | C26: 5 | D26: 7 | E26: 5 | F26: 8 | G26: 6 | H26: =SUM(C26:G26) -> 31
A27: =AND(C26<C$15-1,$A$24=TRUE) を条件として埋め込む

Sheet 3 効率的な作業範囲の移動
B2: セル間は、Tabキーで移動、Enterで改行・確定 | M2: 範囲指定とセル間の移動
C3: 国語 | D3: 社会 | E3: 数学 | F3: 理科 | G3: 英語 | H3: 合計
B4: A | C4: 33 | D4: 55 | E4: 44 | F4: 66 | G4: 22 | H4: =SUM(C4:G4) -> 220 | M4: 1 | N4: 1 | O4: 1 | P4: 1 | Q4: 1 | R4: 1 | S4: 1 | T4: 1 | U4: 1
B5: B | H5: =SUM(C5:G5) -> 0 | M5: 1 | Q5: 1 | U5: 1
B6: C | H6: 0 | M6: 1 | Q6: 1 | U6: 1
B7: D | H7: 0 | M7: 1 | Q7: 1 | U7: 1
B8: E | H8: 0 | M8: 1 | N8: 1 | O8: 1 | P8: 1 | Q8: 1 | R8: 1 | S8: 1 | T8: 1 | U8: 1
M9: 1 | Q9: 1 | U9: 1
M10: 1 | Q10: 1 | U10: 1
C11: 国語 | D11: 社会 | E11: 数学 | F11: 理科 | G11: 英語 | H11: 合計 | I11: COUNT関数 | M11: 1 | Q11: 1 | U11: 1
B12: F | C12: 7 | F12: 5 | H12: =IF(I12=0,"",SUM(C12:G12)) -> 12 | I12: =COUNT(C12:G12) -> 2 | M12: 1 | N12: 1 | O12: 1 | P12: 1 | Q12: 1 | R12: 1 | S12: 1 | T12: 1 | U12: 1
B13: G | I13: 0
B14: H | I14: 0 | M14: Ctrl キーの活用
B15: I | I15: 0 | N15: 香車の動き
B16: J | I16: 0
B17: K | I17: 0 | M17: Shift キーの活用
N18: 範囲指定
N19: 逆方向の動き
C20: 国語 | D20: 社会 | E20: 数学 | F20: 理科 | G20: 英語 | H20: 合計 | O20: Tab
B21: L | C21: 7 | F21: 5 | H21: =IF(COUNT(C21:G21)=0,"",SUM(C21:G21)) -> 12 | I21: =IF(COUNT(C21:G21)=0,"",SUM(C21:G21)) | O21: Enter
B22: M | H22: =IF(COUNT(C22:G22)=0,"",SUM(C22:G22)) -> 
B23: N
B24: O
B25: P
B26: Q

Sheet 4 ボタン類の配置
A1: 1 | B1: 2 | C1: 3 | D1: 4 | E1: 5 | F1: 6 | G1: 7 | H1: 8 | I1: 9 | J1: 10 | K1: 11 | L1: 12 | M1: 13 | N1: 14 | O1: 15 | P1: 16 | Q1: 17 | R1: 18 | S1: 19 | T1: 20 | U1: 21 | V1: 22 | W1: 23 | X1: 24 | Y1: 25 | Z1: 26 | AA1: 27 | AB1: 28 | AC1: 29 | AD1: 30
A2: 2
A3: 3 | F3: Sub ボタン1_Click() Range("6:6").Select End Sub
A4: 4
A5: 5 | V5: 行 | W5: 列 | AD5: 列の読み替え
A6: 6 | V6: 3 | W6: 19 | AD6: A | AE6: 1
A7: 7 | F7: Sub 縦を指定() Range("Q:Q").Select End Sub | AD7: B | AE7: 2
A8: 8 | AD8: C | AE8: 3
A9: 9 | AD9: D | AE9: 4
A10: 10 | AD10: E | AE10: 5
A11: 11 | AD11: F | AE11: 6
A12: 12 | F12: Sub 指定のセル() Range("H11").Select End Sub | AD12: G | AE12: 7
A13: 13 | AD13: H | AE13: 8
A14: 14 | U14: Sub 円楕円2_Click() Dim AAA As Integer Dim BBB As Integer AAA = Range("V6").Value BBB = Range("W6").Value Cells(AAA, BBB).Select End Sub | AD14: I | AE14: 9
A15: 15 | AD15: J | AE15: 10
A16: 16 | AD16: K | AE16: 11
A17: 17 | AD17: L | AE17: 12
A18: 18 | AD18: M | AE18: 13
A19: 19 | AD19: N | AE19: 14
A20: 20 | C20: 7 | D20: 年 | E20: 13 | F20: 組 | G20: 15 | H20: 番 | AD20: O | AE20: 15
A21: 21 | AD21: P | AE21: 16
A22: 22 | B22: FALSE | I22: =IF(B22=TRUE,"チェックがONです","チェックされていません") -> チェックされていません | AD22: Q | AE22: 17
A23: 23 | AD23: R | AE23: 18
A24: 24 | AD24: S | AE24: 19
A25: 25 | AD25: T | AE25: 20
A26: 26 | AD26: U | AE26: 21
A27: 27 | E27: 72
A28: 28
A29: 29
A30: 30

Sheet 5 ボタンで連続変化
D2: 1 | E2: 2 | F2: 3 | G2: 4 | H2: 5
B3: 1 | C3: 2 | D3: 3 | E3: 4 | F3: 5 | G3: 6 | H3: 7
D6: 形容詞 | E6: 形容動詞 | F6: 動詞(カ行五段) | G6: 動詞(下一段) | H6: 動詞(上一段)
D7: うつくしい | E7: 静かだ | F7: 歩く | G7: 当てる | H7: 染みる
B8: 1 | C8: 未然形 | D8: かろ | E8: だろ | F8: か・こ | G8: あて | H8: しみ
B9: 2 | C9: 連用形 | D9: かっ・く・う | E9: だっ・で・に | F9: き | G9: あて | H9: しみ
B10: 3 | C10: 終止形 | D10: い | E10: だ | F10: く | G10: あてる | H10: しみる
B11: 4 | C11: 連体形 | D11: い | E11: な | F11: け | G11: あてる | H11: しみる
B12: 5 | C12: 仮定形 | D12: けれ | E12: なら | F12: け | G12: あてれ | H12: しみれ
B13: 6 | C13: 命令形 | D13: ○ | E13: ○ | F13: こ | G13: あてろ | H13: しみろ
E16: =HLOOKUP($A$17,$D$2:$H$6,5) -> 形容詞
A17: 1
E18: =HLOOKUP($A$17,$D$2:$H$7,6) -> うつくしい
E20: ↓
A21: 3 | E21: =VLOOKUP($A$21,$B$8:$H$13,2) -> 終止形
E23: =VLOOKUP($A$21,$B$8:$H$13,$A$17+2) -> い

Sheet 6 条件つけて平均等
B2: 学級別平均点 | D2: (IFERROR関数)
D3: AVERAGEIF関数 | F3: ROUND関数 | G3: ネストした式 | H3: 0に対応
B4: 1 | C4: =COUNTIF($B$12:$B$32,B4) -> 4 | D4: =IFERROR(AVERAGEIF($B$12:$B$32,$B4,D$12:D$32),"分布に問題あり") -> 53.25 | E4: → | F4: =ROUND(D4,1) -> 53.3 | G4: =ROUND(AVERAGEIF($B$12:$B$32,$B4,$D$12:$D$32),1) -> 53.3 | H4: =IF(C4=0,"",ROUND(AVERAGEIF($B$12:$B$32,$B4,$D$12:$D$32),1)) -> 53.3
B5: 2 | C5: =COUNTIF($B$12:$B$32,B5) -> 3 | D5: =IFERROR(AVERAGEIF($B$12:$B$32,$B5,D$12:D$32),"分布に問題あり") -> 64.66666667 | E5: → | F5: =ROUND(D5,1) -> 64.7 | G5: =ROUND(AVERAGEIF($B$12:$B$32,$B5,$D$12:$D$32),1) -> 64.7 | H5: =IF(C5=0,"",ROUND(AVERAGEIF($B$12:$B$32,$B5,$D$12:$D$32),1)) -> 64.7
B6: 3 | C6: =COUNTIF($B$12:$B$32,B6) -> 4 | D6: =IFERROR(AVERAGEIF($B$12:$B$32,$B6,D$12:D$32),"分布に問題あり") -> 60.25 | E6: → | F6: 60.3 | G6: =ROUND(AVERAGEIF($B$12:$B$32,$B6,$D$12:$D$32),1) -> 60.3 | H6: =IF(C6=0,"",ROUND(AVERAGEIF($B$12:$B$32,$B6,$D$12:$D$32),1)) -> 60.3
B7: 4 | C7: 8 | D7: =IFERROR(AVERAGEIF($B$12:$B$32,$B7,D$12:D$32),"分布に問題あり") -> 42.5 | E7: → | F7: 42.5 | G7: =ROUND(AVERAGEIF($B$12:$B$32,$B7,$D$12:$D$32),1) -> 42.5 | H7: =IF(C7=0,"",ROUND(AVERAGEIF($B$12:$B$32,$B7,$D$12:$D$32),1)) -> 42.5
B8: 5 | C8: 0 | D8: =IFERROR(AVERAGEIF($B$12:$B$32,$B8,D$12:D$32),"分布に問題あり") -> 分布に問題あり | E8: → | G8: =ROUND(AVERAGEIF($B$12:$B$32,$B8,$D$12:$D$32),1) ->  | H8: =IF(C8=0,"",ROUND(AVERAGEIF($B$12:$B$32,$B8,$D$12:$D$32),1)) -> 
C9: 全体 | D9: =AVERAGE(D12:D32) -> 52 | E9: → | F9: 52
C10: 最高点 | D10: =MAX(D12:D32) -> 87
B11: クラス | C11: 氏名 | D11: 得点
B12: 1 | C12: A | D12: 44
B13: 1 | C13: B | D13: 84
B14: 1 | C14: C | D14: 26
B15: 1 | C15: D | D15: 59
B16: 2 | C16: E | D16: 48
B17: 2 | C17: F | D17: 87
B18: 2 | C18: G | D18: 59
B19: 3 | C19: H | D19: 62
B20: 3 | C20: I | D20: 45
B21: 3 | C21: J | D21: 78
B22: 3 | C22: K | D22: 56
B23: 4 | C23: L | D23: 84
B24: 4 | C24: M | D24: 15
B25: 4 | C25: N | D25: 48
B26: 4 | C26: O | D26: 59
B27: 4 | C27: P | D27: 26
B28: 4 | C28: Q | D28: 18
B29: 4 | C29: R | D29: 79
B30: 4 | C30: S | D30: 11

Sheet 7 閾値弁別
B2: 学級別平均点
D3: 平均点
C4: 1 | D4: =IFERROR(AVERAGEIF($B$12:$B$32,$C4,D$12:D$32),"分布に問題あり") -> 48 | E4: 0 | F4: E
C5: 2 | D5: =IFERROR(AVERAGEIF($B$12:$B$32,$C5,D$12:D$32),"分布に問題あり") -> 69.2 | E5: 20 | F5: D
C6: 3 | D6: 45 | E6: 40 | F6: C
C7: 4 | D7: 61.16666667 | E7: 60 | F7: B
C8: 5 | D8: 41.75 | E8: 80 | F8: A
C9: 全体 | D9: =AVERAGE(D12:D32) -> 57.23529412
C10: 最高点 | D10: =MAX(D12:D32) -> 99
B11: クラス | C11: 氏名 | D11: 得点 | E11: 素 | F11: 改 | G11: 順位 | H11: 順位改
B12: 5 | C12: A | D12: 45 | E12: =VLOOKUP($D12,$E$4:$F$8,2) -> C | F12: =IF(D12="","",VLOOKUP(D12,$E$4:$F$8,2)) -> C | G12: =RANK(D12,$D$12:$D$29) -> 13 | H12: =IF(D12="","",RANK(D12,$D$12:$D$29)) -> 13
B13: 4 | C13: B | D13: 84 | E13: A | F13: A | G13: 3 | H13: =IF(D13="","",RANK(D13,$D$12:$D$29)) -> 3
B14: 4 | C14: C | D14: 99 | E14: A | F14: A | G14: 1 | H14: 1
B15: 2 | C15: D | D15: 59 | E15: C | F15: C | G15: 7 | H15: 7
B16: 1 | C16: E | D16: 48 | E16: C | F16: C | G16: 11 | H16: 11
B17: 2 | C17: F | D17: 87 | E17: A | F17: A | G17: 2 | H17: 2
B18: 2 | C18: G | D18: 59 | E18: C | F18: C | G18: 7 | H18: 7
B19: 2 | C19: H | D19: 62 | E19: B | F19: B | G19: 6 | H19: 6
B20: 3 | C20: I | D20: 45 | E20: C | F20: C | G20: 13 | H20: 13
B21: 4 | C21: J | E21: E
B22: 4 | C22: K | D22: 56 | E22: C | F22: C | G22: 10 | H22: 10
B23: 4 | C23: L | D23: 84 | E23: A | F23: A | G23: 3 | H23: 3
B24: 5 | C24: M | D24: 15 | E24: E | F24: E | G24: 17 | H24: 17
B25: 5 | C25: N | D25: 48 | E25: C | F25: C | G25: 11 | H25: 11
B26: 5 | C26: O | D26: 59 | E26: C | F26: C | G26: 7 | H26: 7
B27: 4 | C27: P | D27: 26 | E27: D | F27: D | G27: 15 | H27: 15
B28: 4 | C28: Q | D28: 18 | E28: E | F28: E | G28: 16 | H28: 16
B29: 2 | C29: R | D29: 79 | E29: B | F29: B | G29: 5 | H29: 5
E30: E
E31: E
E32: E

Sheet 8 漸増閾値
B2: 学級別平均点
D3: 平均点
C4: 1 | D4: =IFERROR(AVERAGEIF($B$12:$B$32,$C4,D$12:D$32),"分布に問題あり") -> 1 | E4: 0 | F4: E | G4: =COUNTIF($F$12:$F$32,F4) -> 1
C5: 2 | D5: =IFERROR(AVERAGEIF($B$12:$B$32,$C5,D$12:D$32),"分布に問題あり") -> 69.2 | E5: 11 | F5: D | G5: =COUNTIF($F$12:$F$32,F5) -> 11
C6: 3 | D6: 45 | E6: 65 | F6: C | G6: 1
C7: 4 | D7: 61.16666667 | E7: 80 | F7: B | G7: 3
C8: 5 | D8: 41.75 | E8: 90 | F8: A | G8: 1
C9: 全体 | D9: =AVERAGE(D12:D32) -> 54.47058824
C10: 最高点 | D10: =MAX(D12:D32) -> 99
B11: クラス | C11: 氏名 | D11: 得点 | E11: 素 | F11: 改 | G11: 順位 | H11: 順位改
B12: 5 | C12: A | D12: 45 | E12: =VLOOKUP($D12,$E$4:$F$8,2) -> D | F12: =IF(D12="","",VLOOKUP(D12,$E$4:$F$8,2)) -> D | G12: =RANK(D12,$D$12:$D$29) -> 12 | H12: =IF(D12="","",RANK(D12,$D$12:$D$29)) -> 12
B13: 4 | C13: B | D13: 84 | E13: B | F13: B | G13: 3 | H13: =IF(D13="","",RANK(D13,$D$12:$D$29)) -> 3
B14: 4 | C14: C | D14: 99 | E14: A | F14: A | G14: 1 | H14: 1
B15: 2 | C15: D | D15: 59 | E15: D | F15: D | G15: 7 | H15: 7
B16: 1 | C16: E | D16: 1 | E16: E | F16: E | G16: 17 | H16: 17
B17: 2 | C17: F | D17: 87 | E17: B | F17: B | G17: 2 | H17: 2
B18: 2 | C18: G | D18: 59 | E18: D | F18: D | G18: 7 | H18: 7
B19: 2 | C19: H | D19: 62 | E19: D | F19: D | G19: 6 | H19: 6
B20: 3 | C20: I | D20: 45 | E20: D | F20: D | G20: 12 | H20: 12
B21: 4 | C21: J | E21: E
B22: 4 | C22: K | D22: 56 | E22: D | F22: D | G22: 10 | H22: 10
B23: 4 | C23: L | D23: 84 | E23: B | F23: B | G23: 3 | H23: 3
B24: 5 | C24: M | D24: 15 | E24: D | F24: D | G24: 16 | H24: 16
B25: 5 | C25: N | D25: 48 | E25: D | F25: D | G25: 11 | H25: 11
B26: 5 | C26: O | D26: 59 | E26: D | F26: D | G26: 7 | H26: 7
B27: 4 | C27: P | D27: 26 | E27: D | F27: D | G27: 14 | H27: 14
B28: 4 | C28: Q | D28: 18 | E28: D | F28: D | G28: 15 | H28: 15
B29: 2 | C29: R | D29: 79 | E29: C | F29: C | G29: 5 | H29: 5
E30: E
E31: E
E32: E

Sheet 9 AAAB→4
B2: 関 | C2: 話 | D2: 書 | E2: 読 | F2: 言
B3: C | C3: C | D3: C | E3: C | F3: C | G3: =COUNTIF($B3:$F3,D$15)-COUNTIF($B3:$F3,D$17) -> -5 | H3: 1
B4: C | C4: C | D4: C | E4: C | F4: B | G4: -4 | H4: 2
B5: C | C5: C | D5: C | E5: B | F5: B | G5: -3 | H5: 2
B6: C | C6: C | D6: B | E6: B | F6: B | G6: -2 | H6: 3
B7: C | C7: B | D7: B | E7: B | F7: B | G7: -1 | H7: 3
B8: B | C8: B | D8: B | E8: B | F8: B | G8: 0 | H8: 3
B9: B | C9: B | D9: B | E9: B | F9: A | G9: 1 | H9: 3
B10: B | C10: B | D10: B | E10: A | F10: A | G10: 2 | H10: 3
B11: B | C11: B | D11: A | E11: A | F11: A | G11: 3 | H11: 4
B12: B | C12: A | D12: A | E12: A | F12: A | G12: 4 | H12: 4
B13: A | C13: A | D13: A | E13: A | F13: A | G13: 5 | H13: 5
T14: ネスト
D15: A | E15: 1 | I15: 組 | J15: 番 | K15: 名前 | L15: 関 | M15: 話 | N15: 書 | O15: 読 | P15: 言 | R15: 評定 | T15: 評定
D16: B | E16: 0 | I16: 1 | J16: 1 | K16: 新井 | L16: B | M16: B | N16: B | O16: C | P16: C | Q16: =COUNTIF($L16:$P16,D$15)-COUNTIF($L16:$P16,D$17) -> -2 | R16: =VLOOKUP($Q16,$G$3:$H$13,2) -> 3 | T16: =VLOOKUP(COUNTIF($L16:$P16,D$15)-COUNTIF($L16:$P16,D$17),$G$3:$H$13,2) -> 3
D17: C | E17: -1 | I17: 1 | J17: 2 | K17: 石井 | L17: C | M17: C | N17: B | O17: A | P17: A | Q17: 0 | R17: 3 | T17: 3
I18: 1 | J18: 3 | K18: 臼井 | L18: C | M18: C | N18: A | O18: A | P18: C | Q18: -1 | R18: 3 | T18: 3
I19: 2 | J19: 1 | K19: 江藤 | L19: B | M19: B | N19: A | O19: A | P19: A | Q19: 3 | R19: 4 | T19: 4
I20: 2 | J20: 2 | K20: 大木 | L20: A | M20: C | N20: B | O20: C | P20: A | Q20: 0 | R20: 3 | T20: 3
I21: 2 | J21: 3 | K21: 加藤 | L21: B | M21: B | N21: B | O21: C | P21: A | Q21: 0 | R21: 3 | T21: 3
I22: 3 | J22: 1 | K22: 工藤 | L22: A | M22: B | N22: B | O22: C | P22: A | Q22: 1 | R22: 3 | T22: 3
I23: 3 | J23: 2 | K23: 後藤 | L23: B | M23: B | N23: C | O23: C | P23: A | Q23: -1 | R23: 3 | T23: 3
I24: 3 | J24: 3 | K24: 佐藤 | L24: B | M24: C | N24: C | O24: C | P24: A | Q24: -2 | R24: 3 | T24: 3
I25: 3 | J25: 4 | K25: 鈴木 | L25: C | M25: C | N25: C | O25: C | P25: A | Q25: -3 | R25: 2 | T25: 2

Sheet 10 評定分布表
B2: 関 | C2: 話 | D2: 書 | E2: 読 | F2: 言 | L2: 関 | M2: 話 | N2: 書 | O2: 読 | P2: 言
B3: C | C3: C | D3: C | E3: C | F3: C | G3: =COUNTIF($B3:$F3,D$15)-COUNTIF($B3:$F3,D$17) -> -5 | H3: 1 | K3: A | L3: =COUNTIF(L$16:L$25,$K3) -> 2 | M3: 0 | N3: 2 | O3: 3 | P3: 7
B4: C | C4: C | D4: C | E4: C | F4: B | G4: -4 | H4: 2 | K4: B | L4: 4 | M4: 4 | N4: 4 | O4: 0 | P4: 0
B5: C | C5: C | D5: C | E5: B | F5: B | G5: -3 | H5: 2 | K5: C | L5: 3 | M5: 5 | N5: 3 | O5: 6 | P5: 2
B6: C | C6: C | D6: B | E6: B | F6: B | G6: -2 | H6: 3
B7: C | C7: B | D7: B | E7: B | F7: B | G7: -1 | H7: 3 | L7: 1 | M7: 2 | N7: 3 | O7: 4 | P7: 5
B8: B | C8: B | D8: B | E8: B | F8: B | G8: 0 | H8: 3 | K8: 1 | L8: =COUNTIFS($I$16:$I$25,$K8,$R$16:$R$25,L$7) -> 0 | M8: 0 | N8: 3 | O8: 0 | P8: 0
B9: B | C9: B | D9: B | E9: B | F9: A | G9: 1 | H9: 3 | K9: 2 | L9: 0 | M9: 0 | N9: 2 | O9: 1 | P9: 0
B10: B | C10: B | D10: B | E10: A | F10: A | G10: 2 | H10: 3 | K10: 3 | L10: 0 | M10: 1 | N10: 3 | O10: 0 | P10: 0
B11: B | C11: B | D11: A | E11: A | F11: A | G11: 3 | H11: 4 | K11: 合計 | L11: =SUM(L8:L10) -> 0 | M11: =SUM(M8:M10) -> 1 | N11: 8 | O11: 1 | P11: 0
B12: B | C12: A | D12: A | E12: A | F12: A | G12: 4 | H12: 4
B13: A | C13: A | D13: A | E13: A | F13: A | G13: 5 | H13: 5
T14: ネスト
D15: A | E15: 1 | I15: 組 | J15: 番 | K15: 名前 | L15: 関 | M15: 話 | N15: 書 | O15: 読 | P15: 言 | R15: 評定 | S15: 不能考慮 | T15: 評定
D16: B | E16: 0 | H16: 1 | I16: 1 | J16: 1 | K16: 新井 | L16: B | M16: B | N16: B | O16: C | P16: C | Q16: =COUNTIF($L16:$P16,D$15)-COUNTIF($L16:$P16,D$17) -> -2 | R16: =VLOOKUP($Q16,$G$3:$H$13,2) -> 3 | S16: =IF(COUNTA(L16:P16)=0,"",R16) -> 3 | T16: =IF(COUNTA(L16:P16)=0,"",VLOOKUP($Q16,$G$3:$H$13,2)) -> 3
D17: C | E17: -1 | H17: 2 | I17: 1 | J17: 2 | K17: 石井 | L17: C | M17: C | N17: B | O17: A | P17: A | Q17: 0 | R17: 3 | S17: =IF(COUNTA(L17:P17)=0,"",R17) -> 3 | T17: 3
H18: 3 | I18: 1 | J18: 3 | K18: 臼井 | L18: C | M18: C | N18: A | O18: A | P18: C | Q18: -1 | R18: 3 | S18: 3 | T18: 3
H19: 4 | I19: 2 | J19: 1 | K19: 江藤 | L19: B | M19: B | N19: A | O19: A | P19: A | Q19: 3 | R19: 4 | S19: 4 | T19: 4
H20: 5 | I20: 2 | J20: 2 | K20: 大木 | L20: A | M20: C | N20: B | O20: C | P20: A | Q20: 0 | R20: 3 | S20: 3 | T20: 3
H21: 6 | I21: 2 | J21: 3 | K21: 加藤 | Q21: 0 | R21: 3
H22: 7 | I22: 3 | J22: 1 | K22: 工藤 | L22: A | M22: B | N22: B | O22: C | P22: A | Q22: 1 | R22: 3 | S22: 3 | T22: 3
H23: 8 | I23: 3 | J23: 2 | K23: 後藤 | L23: B | M23: B | N23: C | O23: C | P23: A | Q23: -1 | R23: 3 | S23: 3 | T23: 3
H24: 9 | I24: 3 | J24: 3 | K24: 佐藤 | L24: B | M24: C | N24: C | O24: C | P24: A | Q24: -2 | R24: 3 | S24: 3 | T24: 3
H25: 10 | I25: 3 | J25: 4 | K25: 鈴木 | L25: C | M25: C | N25: C | O25: C | P25: A | Q25: -3 | R25: 2 | S25: 2 | T25: 2

Sheet 11 連続印刷
E3: キーC | F3: 3 | G3: → | H3: =VLOOKUP($F$3,'10 評定分布表'!$H$16:$T$25,2) -> 1 | I3: =VLOOKUP($F$3,'10 評定分布表'!$H$16:$T$25,3) -> 3 | J3: =VLOOKUP($F$3,'10 評定分布表'!$H$16:$T$25,4) -> 臼井
C4: キーA
C5: 1 | D5: =VLOOKUP(C5,'10 評定分布表'!$H$16:$K$25,2) -> 1 | E5: =VLOOKUP(C5,'10 評定分布表'!$H$16:$K$25,3) -> 1 | F5: =VLOOKUP(C5,'10 評定分布表'!$H$16:$K$25,4) -> 新井 | H5: 評定 | I5: 関心 | J5: 話す聞く | K5: 書く | L5: 読む | M5: 伝統文化
C6: キーB | E6: から | H6: =VLOOKUP($F$3,'10 評定分布表'!$H$16:$T$25,11) -> 3 | I6: =VLOOKUP($F$3,'10 評定分布表'!$H$16:$T$25,5) -> C | J6: =VLOOKUP($F$3,'10 評定分布表'!$H$16:$T$25,6) -> C | K6: =VLOOKUP($F$3,'10 評定分布表'!$H$16:$T$25,7) -> A | L6: =VLOOKUP($F$3,'10 評定分布表'!$H$16:$T$25,8) -> A | M6: =VLOOKUP($F$3,'10 評定分布表'!$H$16:$T$25,9) -> C
C7: 3 | D7: =VLOOKUP(C7,'10 評定分布表'!$H$16:$K$25,2) -> 1 | E7: =VLOOKUP(C7,'10 評定分布表'!$H$16:$K$25,3) -> 3 | F7: =VLOOKUP(C7,'10 評定分布表'!$H$16:$K$25,4) -> 臼井
C10: キーC に
C11: キーA から キーB までの数字を順に入れては印刷を実行する。
